bitfinex/quotes_SOLUSD_20250912
["timestamp","ask_amount","ask_price","bid_price","bid_amount"]
[1757664963173,98.60152854,237.11,237.1,0.12]
[1757664963976,43.81304582,237.11,237.1,0.78]
[1757664964162,78.60152854,237.11,237.1,0.12]
[1757664965047,13.59559401,237.1,237.09,0.12]
[1757664965246,16.53407673,237.1,237.09,0.12]
[1757664966171,16.53407673,237.1,237.08,1e-08]
[1757664966374,74.38407673,237.09,237.08,1e-08]
[1757664966675,78.60188431,237.09,237.08,1e-08]
[1757664967354,53.31188431,237.09,237.08,1e-08]
[1757664969380,13.59559401,237.04,237.01,0.1]
[1757664969677,15.82407673,237.02,237.01,0.1]
[1757664969875,48.38407673,237.02,237.01,0.1]
[1757664970458,48.38407673,237.02,237.01,0.76]
[1757664970658,52.60312997,237.02,237.01,0.76]
[1757664970952,52.60312997,237.02,237.01,0.1]
[1757664973183,52.60312997,237.02,236.97,0.78]
[1757664973184,13.59559401,236.98,236.97,0.12]
[1757664973387,15.82407673,236.98,236.97,0.12]
[1757664973773,48.38407673,236.98,236.97,0.12]
[1757664973975,48.38407673,236.98,236.97,0.78]
[1757664974577,46.15559401,236.98,236.97,0.12]
[1757664974764,48.38407673,236.98,236.97,0.78]
[1757664975970,52.60384211,236.98,236.97,0.78]
[1757664977191,52.60384211,236.98,236.97,0.12]
[1757664977573,50.37535939,236.98,236.97,0.12]
[1757664977773,52.60384211,236.98,236.97,0.12]
[1757664979477,53.31384211,236.98,236.97,1e-08]
[1757664979690,53.31384211,236.98,236.96,0.2]
[1757664979994,55.00299563,236.98,236.96,0.2]
[1757664980166,54.29299563,236.98,236.96,0.2]
[1757664980490,52.06451291,236.98,236.96,0.2]
[1757664980694,41.82407673,236.97,236.96,0.2]
[1757664980877,74.38407673,236.97,236.96,0.2]
[1757664981082,74.38407673,236.97,236.96,0.86]
[1757664981676,78.60402018,236.97,236.96,0.86]
[1757664981874,78.60402018,236.97,236.96,0.2]
[1757664982423,76.37553746,236.97,236.96,0.2]
[1757664982613,78.60402018,236.97,236.96,0.2]
[1757664990436,79.86651384,236.97,236.96,0.2]
[1757664992008,13.59559401,236.97,236.96,0.91]
[1757664992208,32.58,236.97,236.96,0.91]
[1757664996241,51.05553746,236.97,236.96,0.2]
[1757664996617,50.39553746,236.97,236.96,0.2]
[1757664996810,13.59559401,236.96,236.93,0.12]
[1757664997123,61.60539609,236.97,236.93,0.12]
[1757664997124,17.08657039,236.94,236.93,0.12]
[1757664997312,49.66657039,236.94,236.93,0.12]
[1757664997839,50.32657039,236.94,236.93,0.12]
[1757664998335,54.54704814,236.94,236.93,0.12]
[1757664998542,53.88704814,236.94,236.93,0.12]
[1757665001038,17.81607176,236.94,236.93,0.12]
[1757665001229,50.39607176,236.94,236.93,0.12]
[1757665001426,53.88704814,236.94,236.93,0.12]
[1757665005045,13.59559401,236.94,236.93,0.83]
[1757665005344,32.58,236.94,236.93,0.83]
[1757665008362,4.219889,236.98,236.93,0.83]
[1757665008530,32.58,236.97,236.93,0.83]
[1757665008726,32.58,236.96,236.93,5.05064282]
[1757665009050,32.58,236.96,236.94,0.71]
[1757665013950,0.03,237.0,236.94,4.93045831]
[1757665014148,32.58,236.99,236.94,4.93045831]
[1757665014348,32.58,236.99,236.95,0.71]
[1757665016051,36.79959982,236.99,236.95,0.71]
[1757665019231,36.79959982,236.99,236.96,0.67]
[1757665019430,36.79959982,236.99,236.97,0.67]
[1757665019843,37.45959982,236.99,236.93,0.79]
[1757665020157,3.49097638,236.96,236.93,0.12]
[1757665020338,32.56,236.95,236.93,0.12]
[1757665020537,17.08657039,236.94,236.93,0.12]
[1757665020941,17.74657039,236.94,236.93,0.12]
[1757665021159,21.96704814,236.94,236.93,0.12]
[1757665021461,32.56,236.94,236.93,0.12]
[1757665021658,33.22,236.94,236.93,0.12]
[1757665021960,46.81559401,236.94,236.93,0.12]
[1757665022133,50.30657039,236.94,236.93,0.12]
[1757665023273,54.52704814,236.94,236.93,0.12]
[1757665025050,144.69559401,236.93,236.92,25.98600001]
[1757665025253,34.25559401,236.93,236.92,1e-08]
[1757665025454,14.25559401,236.93,236.92,1e-08]
[1757665026560,13.59559401,236.86,236.81,0.1]
[1757665026857,3.49097638,236.82,236.81,0.1]
[1757665027061,36.09097638,236.82,236.81,0.1]
[1757665027262,10.64874803,236.85,236.81,0.77]
[1757665027436,13.59559401,236.83,236.81,0.1]
[1757665027639,49.68657039,236.82,236.81,0.1]
[1757665028064,46.19559401,236.82,236.81,0.1]
[1757665028257,46.85559401,236.82,236.81,0.1]
[1757665029170,53.28093105,236.82,236.81,0.1]
[1757665029345,17.08657039,236.76,236.75,2.20272071]
[1757665029546,49.72657039,236.76,236.75,2.20272071]
[1757665029761,13.59559401,236.76,236.75,2.20272071]
[1757665030059,46.25559401,236.76,236.75,2.20272071]
[1757665030842,32.66,236.76,236.75,2.87272071]
[1757665031044,13.59559401,236.8,236.75,2.87272071]
[1757665031245,32.68,236.79,236.76,0.67]
[1757665032265,32.68,236.79,236.77,0.67]
[1757665032462,131.1,236.81,236.77,0.67]
[1757665032684,32.68,236.8,236.78,0.67]
[1757665033044,17.8179878,236.84,236.79,0.67]
[1757665033241,32.68,236.83,236.8,0.67]
[1757665033672,32.68,236.83,236.81,0.67]
[1757665033876,32.68,236.83,236.82,0.67]
[1757665035140,32.68,236.83,236.78,0.67]
[1757665035141,4.22261633,236.82,236.78,0.67]
[1757665035446,32.68,236.81,236.79,0.67]
[1757665035859,32.68,236.81,236.8,0.67]
[1757665040464,13.59559401,236.85,236.8,0.67]
[1757665040667,32.68,236.84,236.8,0.67]
[1757665040867,32.68,236.84,236.81,0.67]
[1757665041071,32.68,236.84,236.79,0.67]
[1757665041269,32.68,236.84,236.8,0.67]
[1757665041570,32.68,236.84,236.8,0.79]
[1757665041873,0.03,236.83,236.8,0.79]
[1757665042265,3.49097638,236.82,236.8,0.12]
[1757665042455,0.03,236.83,236.8,0.79]
[1757665042655,32.68,236.82,236.8,0.12]
[1757665044275,36.17097638,236.82,236.8,0.12]
[1757665044975,32.68,236.82,236.8,0.12]
[1757665045177,36.90262753,236.82,236.8,0.12]
[1757665045954,37.61262753,236.82,236.8,0.12]
[1757665046274,3.49097638,236.81,236.8,0.12]
[1757665047173,8.42377102,236.81,236.8,0.12]
[1757665047877,7.71377102,236.81,236.8,0.12]
[1757665048381,8.42377102,236.81,236.8,0.12]
[1757665049780,7.71377102,236.81,236.8,0.12]
[1757665049954,22.01936503,236.81,236.8,0.12]
[1757665050155,21.30936503,236.81,236.8,0.12]
[1757665050379,20.05479729,236.81,236.8,0.12]
[1757665050764,20.76479729,236.81,236.8,0.12]
[1757665051477,13.59559401,236.78,236.77,0.12]
[1757665051686,15.83200265,236.74,236.73,0.2]
[1757665051884,48.51200265,236.74,236.73,0.2]
[1757665052186,49.22200265,236.74,236.73,2.40407088]
[1757665052477,48.51200265,236.74,236.73,2.40407088]
[1757665052960,49.22200265,236.74,236.73,0.2]
[1757665053159,46.98559401,236.74,236.73,0.2]
[1757665053362,49.22200265,236.74,236.73,0.2]
[1757665053662,51.20963726,236.74,236.73,0.2]
[1757665053970,53.4460459,236.74,236.73,0.2]
[1757665054365,52.7360459,236.74,236.73,0.2]
[1757665055768,20.0560459,236.74,236.73,0.2]
[1757665055967,52.7360459,236.74,236.73,0.2]
[1757665056174,20.0560459,236.74,236.73,2.40394775]
[1757665056370,20.7660459,236.74,236.73,2.40394775]
[1757665056560,52.7360459,236.74,236.73,2.40394775]
[1757665056884,53.4460459,236.74,236.73,2.40394775]
[1757665058075,66.12594192,236.74,236.73,2.40394775]
[1757665060694,66.12594192,236.74,236.73,0.2]
[1757665060895,63.88953328,236.74,236.73,0.2]
[1757665061078,52.7360459,236.74,236.73,0.2]
[1757665062318,53.4460459,236.74,236.73,0.2]
[1757665062992,55.68245454,236.74,236.73,0.2]
[1757665063196,51.20963726,236.74,236.73,0.2]
[1757665063500,50.49963726,236.74,236.73,0.2]
[1757665063698,52.7360459,236.74,236.73,2.40413452]
[1757665065303,53.4460459,236.74,236.73,2.40413452]
[1757665065705,52.7360459,236.74,236.73,2.40413452]
[1757665067314,46.27559401,236.74,236.73,3.11413452]
[1757665067609,48.51200265,236.74,236.73,3.11413452]
[1757665067802,52.7360459,236.74,236.73,2.40413452]
[1757665068497,52.7360459,236.74,236.73,3.11413452]
[1757665069308,13.59559401,236.78,236.73,3.11413452]
[1757665069611,13.59559401,236.78,236.73,2.40413452]
[1757665069612,2.23640864,236.74,236.73,2.40413452]
[1757665069812,34.89640864,236.74,236.73,2.40413452]
[1757665070013,34.89640864,236.74,236.73,3.11413452]
[1757665070814,2.23640864,236.74,236.73,3.11413452]
[1757665070991,13.59559401,236.8,236.73,7.33835572]
[1757665071188,32.68,236.79,236.74,0.71]
[1757665071416,2.23640864,236.75,236.73,2.40413452]
[1757665071618,32.68,236.74,236.73,2.40413452]
[1757665072196,32.68,236.74,236.73,3.11413452]
[1757665072394,12.67668124,236.8,236.73,3.11413452]
[1757665072593,46.29559401,236.79,236.74,0.71]
[1757665072897,13.59559401,236.77,236.73,2.40413452]
[1757665073098,2.23640864,236.74,236.73,2.40413452]
[1757665073417,34.95640864,236.74,236.73,3.11413452]
[1757665074403,39.18045189,236.74,236.73,3.11413452]
[1757665074804,36.94404325,236.74,236.73,3.11413452]
[1757665074994,39.18045189,236.74,236.73,3.11413452]
[1757665075198,36.94404325,236.74,236.73,2.40413452]
[1757665075613,39.18045189,236.74,236.73,2.40413452]
[1757665076110,39.18045189,236.74,236.73,3.11413452]
[1757665076416,39.18045189,236.74,236.73,2.40413452]
[1757665076615,36.94404325,236.74,236.73,3.11413452]
[1757665077010,34.95640864,236.74,236.73,3.11413452]
[1757665077200,32.72,236.74,236.73,3.11413452]
[1757665077403,34.95640864,236.74,236.73,3.11413452]
[1757665079318,32.72,236.74,236.73,3.11413452]
[1757665080202,2.23640864,236.76,236.73,3.11413452]
[1757665080527,32.68,236.75,236.74,0.71]
[1757665080909,131.1,236.8,236.74,0.71]
[1757665081112,48.51200265,236.79,236.74,0.71]
[1757665081419,2.23640864,236.75,236.73,2.40413452]
[1757665081628,32.68,236.74,236.73,3.11413452]
[1757665083320,32.68,236.74,236.73,7.3383562]
[1757665083714,131.1,236.8,236.73,7.3383562]
[1757665083923,32.68,236.79,236.74,0.71]
[1757665085133,2.23640864,236.76,236.73,2.40413452]
[1757665085435,34.91640864,236.75,236.73,3.11413452]
[1757665085628,34.91640864,236.75,236.73,2.40413452]
[1757665085828,34.91640864,236.75,236.74,0.71]
[1757665086214,32.68,236.75,236.74,0.71]
[1757665086414,34.91640864,236.75,236.74,0.71]
[1757665087022,34.91640864,236.75,236.73,2.40413452]
[1757665087331,32.68,236.75,236.74,0.71]
[1757665087932,32.7,236.75,236.74,4.93404325]
[1757665088128,0.03,236.81,236.74,15.49415138]
[1757665088441,34.93640864,236.8,236.75,0.71]
[1757665089012,34.93640864,236.8,236.76,0.71]
[1757665089226,34.93640864,236.8,236.77,0.71]
[1757665089434,39.15944565,236.8,236.74,26.71]
[1757665089620,39.85944565,236.8,236.74,0.71]
[1757665089938,2.23640864,236.76,236.73,2.40413452]
[1757665090135,34.93640864,236.75,236.73,2.40413452]
[1757665090335,32.7,236.74,236.73,3.11413452]
[1757665090543,32.7,236.74,236.73,2.40413452]
[1757665092932,36.92404325,236.74,236.73,2.40413452]
[1757665093124,39.86045189,236.74,236.73,2.40413452]
[1757665093542,53.4560459,236.74,236.73,2.40413452]
[1757665094220,193.50168046,236.74,236.73,2.40413452]
[1757665094419,184.5560459,236.74,236.73,2.40413452]
[1757665095728,193.50168046,236.74,236.73,2.40413452]
[1757665097137,193.50168046,236.74,236.73,0.2]
[1757665097859,168.06404325,236.74,236.73,0.2]
[1757665098040,144.69559401,236.74,236.73,0.2]
[1757665098236,48.59200265,236.74,236.73,0.2]
[1757665098425,52.8160459,236.74,236.73,0.2]
[1757665099422,32.76,236.74,236.73,0.91]
[1757665100045,32.76,236.74,236.73,3.11365009]
[1757665100559,39.22045189,236.74,236.73,2.40365009]
[1757665102149,36.98404325,236.74,236.73,2.40365009]
[1757665102352,39.22045189,236.74,236.73,2.40365009]
[1757665102550,52.8160459,236.74,236.73,2.40365009]
[1757665102947,53.5160459,236.74,236.73,2.40365009]
[1757665103146,52.8160459,236.74,236.73,2.40365009]
[1757665103853,50.57963726,236.74,236.73,2.40365009]
[1757665104039,52.8160459,236.74,236.73,2.40365009]
[1757665105767,0.03,236.77,236.73,3.06365009]
[1757665106065,0.03,236.77,236.74,0.66]
[1757665106564,32.76,236.76,236.74,0.66]
[1757665106745,0.03,236.77,236.75,4.22386483]
[1757665107265,32.79,236.77,236.76,0.66]
[1757665107928,0.03,236.77,236.76,26.66]
[1757665108338,0.03,236.77,236.76,0.66]
[1757665108855,0.03,236.77,236.76,4.88368643]
[1757665109952,0.03,236.77,236.76,30.88368643]
[1757665113848,0.03,236.77,236.76,4.88368643]
[1757665116261,0.03,236.77,236.76,5.00368643]
[1757665120275,0.03,236.81,236.79,26.0]
[1757665120479,0.03,236.81,236.8,26.0]
[1757665120988,0.03,236.81,236.8,26.66]
[1757665121869,0.03,236.81,236.8,30.88297297]
[1757665125769,0.03,236.81,236.8,63.58297297]
[1757665127482,0.03,236.81,236.8,30.22297297]
[1757665127780,0.71,236.81,236.8,30.22297297]
[1757665128492,0.03,236.81,236.8,30.22297297]
[1757665133678,0.03,236.81,236.8,4.88297297]
[1757665134889,0.03,236.81,236.8,5.00297297]
[1757665135387,0.03,236.81,236.8,37.66297297]
[1757665139188,0.03,236.81,236.8,31.00297297]
[1757665139391,0.03,236.81,236.8,37.64297297]
[1757665142103,1e-08,236.82,236.8,37.64297297]
[1757665142281,1e-08,236.82,236.81,0.69]
[1757665144308,0.03,236.86,236.84,26.0]
[1757665144480,0.03,236.86,236.85,32.62]
[1757665144977,0.03,236.86,236.85,33.31]
[1757665146298,0.03,236.86,236.85,36.84208148]
[1757665146495,0.03,236.86,236.85,63.53208148]
[1757665147283,0.03,236.86,236.85,63.51208148]
[1757665148906,0.03,236.86,236.85,97.10767549]
[1757665149410,0.03,236.86,236.85,97.14767549]
[1757665150189,0.03,236.86,236.85,64.50767549]
[1757665150511,0.03,236.86,236.85,97.14767549]
[1757665152613,0.03,236.86,236.85,62.86208148]
[1757665153605,0.03,236.86,236.85,63.55208148]
[1757665154409,0.72,236.86,236.85,4.22208148]
[1757665155197,0.72,236.86,236.85,30.22208148]
[1757665156517,0.03,236.86,236.85,30.22208148]
[1757665156815,0.03,236.86,236.85,62.84208148]
[1757665157720,0.03,236.86,236.85,63.53208148]
[1757665158710,0.03,236.86,236.85,62.84208148]
[1757665158905,0.72,236.86,236.85,36.84208148]
[1757665159106,0.03,236.86,236.85,36.84208148]
[1757665160401,0.03,236.86,236.85,36.82208148]
[1757665161124,0.03,236.86,236.85,37.51208148]
[1757665161625,0.03,236.86,236.85,36.82208148]
[1757665162024,0.03,236.86,236.85,37.51208148]
[1757665162922,0.03,236.86,236.85,4.91208148]
[1757665163220,0.03,236.86,236.85,37.51208148]
[1757665166122,0.03,236.86,236.85,59.26]
[1757665167332,0.03,236.86,236.85,26.0]
[1757665167534,0.03,236.86,236.85,58.6]
[1757665168027,0.03,236.86,236.85,62.82208148]
[1757665168207,0.03,236.86,236.85,30.22208148]
[1757665168528,0.03,236.86,236.85,62.82208148]
[1757665168906,0.03,236.86,236.85,30.22208148]
[1757665169139,0.03,236.86,236.85,62.82208148]
[1757665170138,0.03,236.86,236.85,63.48208148]
[1757665171011,0.03,236.86,236.85,30.88208148]
[1757665171215,0.03,236.86,236.85,63.48208148]
[1757665171411,0.03,236.86,236.85,62.82208148]
[1757665171711,0.03,236.86,236.85,63.48208148]
[1757665172231,0.03,236.86,236.85,77.07767549]
[1757665172442,0.03,236.89,236.85,107.6328792]
[1757665172644,0.03,236.89,236.88,26.0]
[1757665172942,0.03,236.89,236.88,59.26]
[1757665173749,0.03,236.89,236.88,63.48154677]
[1757665173947,0.03,236.89,236.88,30.88154677]
[1757665174251,0.03,236.89,236.88,63.48154677]
[1757665176641,0.03,236.89,236.88,30.88154677]
[1757665176841,0.03,236.89,236.88,30.22154677]
[1757665177013,0.03,236.89,236.88,62.82154677]
[1757665177929,0.03,236.89,236.88,36.82154677]
[1757665179458,0.03,236.89,236.88,4.22154677]
[1757665179659,0.03,236.89,236.88,36.82154677]
[1757665182339,0.03,236.89,236.88,37.48154677]
[1757665184463,1e-08,236.91,236.9,26.0]
[1757665184648,1e-08,236.91,236.9,58.6]
[1757665184845,1e-08,236.91,236.9,59.26]
[1757665186766,1e-08,236.91,236.9,63.48119037]
[1757665187268,1e-08,236.91,236.9,77.49890341]
[1757665187451,0.71,236.98,236.94,26.0]
[1757665187765,0.71,236.97,236.94,58.6]
[1757665188643,0.71,236.97,236.95,4.22029964]
[1757665189553,0.03,236.96,236.95,4.22029964]
[1757665190666,0.03,236.96,236.95,4.88029964]
[1757665190870,0.03,236.96,236.95,4.22029964]
[1757665191454,0.03,236.96,236.95,4.88029964]
[1757665192259,0.03,236.96,236.95,4.22029964]
[1757665192467,0.03,236.96,236.95,4.88029964]
[1757665195480,0.03,236.96,236.95,4.22029964]
[1757665196089,0.03,236.96,236.95,4.87029964]
[1757665196469,0.03,236.96,236.95,37.45029964]
[1757665197165,0.03,236.96,236.95,36.80029964]
[1757665197378,0.03,236.96,236.95,40.12825544]
[1757665197682,0.03,236.96,236.95,40.77825544]
[1757665198985,0.03,236.96,236.95,42.46591234]
[1757665200666,1e-08,236.99,236.98,26.0]
[1757665200884,1e-08,236.99,236.98,58.58]
[1757665201193,1e-08,236.99,236.98,26.0]
[1757665202274,1e-08,236.99,236.98,62.79976538]
[1757665202977,1e-08,236.99,236.98,63.44976538]
[1757665203481,1e-08,236.99,236.98,62.79976538]
[1757665204475,1e-08,236.99,236.98,63.44976538]
[1757665204865,1e-08,236.99,236.98,30.21976538]
[1757665205061,1e-08,236.99,236.98,62.79976538]
[1757665205469,1e-08,236.99,236.98,63.44976538]
[1757665206574,0.03,237.02,236.98,74.42115536]
[1757665206787,0.72,237.02,236.98,40.76917883]
[1757665207168,0.72,237.02,236.99,32.58]
[1757665207785,0.03,237.02,237.0,4.21940928]
[1757665208507,0.03,237.02,237.0,4.86940928]
[1757665208705,0.03,237.02,237.01,33.23]
[1757665209107,0.03,237.02,237.01,34.91730095]
[1757665210403,0.03,237.02,237.01,6.5565322]
[1757665210789,0.03,237.02,237.01,39.1365322]
[1757665213602,0.03,237.02,237.01,32.5565322]
[1757665213912,0.03,237.02,237.01,39.1365322]
[1757665215526,0.72,237.02,236.98,4.21959573]
[1757665215815,0.69,237.01,236.98,26.0]
[1757665216399,0.69,237.01,237.0,26.0]
[1757665216818,0.03,237.02,237.0,26.0]
[1757665217222,0.03,237.02,237.01,30.21923125]
[1757665217923,0.72,237.02,237.01,30.21923125]
[1757665218725,0.72,237.02,237.0,30.21939878]
[1757665218893,0.69,237.01,237.0,30.21939878]
[1757665220224,0.69,237.01,237.0,4.21939878]
[1757665220397,0.69,237.01,236.98,26.0]
[1757665220599,0.69,237.0,236.98,26.0]
[1757665220826,0.69,236.99,236.98,26.0]
[1757665221399,0.69,236.99,236.98,30.21976538]
[1757665223929,0.03,237.02,236.98,14.76917883]
[1757665224131,0.03,237.02,236.98,15.41917883]
[1757665224427,0.69,237.01,236.98,14.76917883]
[1757665225513,0.69,237.01,236.98,10.66941345]
[1757665225936,0.03,237.02,236.98,10.66941345]
[1757665226134,0.03,237.02,236.99,0.7]
[1757665226424,0.03,237.02,237.0,32.56]
[1757665226631,0.03,237.02,237.01,0.42192312]
[1757665226833,0.03,237.02,237.01,1.12192312]
[1757665227032,1e-08,237.03,237.02,26.0]
[1757665227330,1e-08,237.03,237.02,46.85559401]
[1757665227514,1e-08,237.03,237.02,51.07464725]
[1757665227717,1e-08,237.03,237.02,51.49655257]
[1757665228029,0.1,237.07,237.06,26.0]
[1757665228526,0.1,237.07,237.04,26.0]
[1757665228733,0.1,237.07,237.05,58.56]
[1757665229328,0.1,237.07,237.05,26.0]
[1757665229630,0.1,237.07,237.06,30.91834134]
[1757665229831,0.1,237.07,237.06,30.21834134]
[1757665230200,0.82,237.07,237.06,30.21834134]
[1757665230404,0.1,237.07,237.06,30.21834134]
[1757665231213,0.82,237.07,237.06,30.21834134]
[1757665231428,0.82,237.07,237.04,4.21852949]
[1757665231719,0.1,237.07,237.02,14.76668635]
[1757665232027,0.72,237.06,237.02,14.76668635]
[1757665232319,0.1,237.07,237.02,14.76668635]
[1757665232529,0.72,237.06,237.02,14.76668635]
[1757665233317,0.72,237.05,237.02,14.76668635]
[1757665233519,0.1,237.07,237.02,14.76668635]
[1757665234017,0.1,237.07,237.05,26.0]
[1757665234728,0.1,237.07,237.05,26.7]
[1757665236029,0.1,237.07,237.06,4.21834134]
[1757665237233,0.1,237.07,237.06,30.91834134]
[1757665239225,0.1,237.09,237.06,30.91834134]
[1757665239226,0.1,237.09,237.06,41.46419471]
[1757665239534,0.1,237.09,237.07,0.7]
[1757665239732,0.1,237.09,237.08,0.7]
[1757665240118,0.1,237.09,237.08,26.7]
[1757665240328,0.1,237.09,237.08,32.60478837]
[1757665243330,0.03,237.13,237.12,26.0]
[1757665243521,0.72,237.21,237.12,58.56]
[1757665243838,0.1,237.29,237.12,58.56]
[1757665243839,0.72,237.24,237.13,0.7]
[1757665244026,0.72,237.24,237.17,26.0]
[1757665244335,0.72,237.25,237.16,58.56]
[1757665244648,0.72,237.25,237.17,4.21638487]
[1757665244845,0.1,237.29,237.17,4.91638487]
[1757665245023,0.72,237.27,237.18,0.7]
[1757665245235,0.82,237.29,237.21,26.0]
[1757665245528,0.82,237.29,237.23,26.0]
[1757665246333,0.82,237.29,237.24,4.21514078]
[1757665246520,0.82,237.29,237.24,4.91514078]
[1757665246814,0.1,237.29,237.24,15.45299274]
[1757665247020,0.1,237.29,237.25,0.7]
[1757665247253,0.1,237.29,237.24,14.75299274]
[1757665247457,0.1,237.29,237.27,26.0]
[1757665247818,0.1,237.29,237.27,26.7]
[1757665248226,0.1,237.29,237.28,4.9144302]
[1757665248835,0.1,237.29,237.28,30.9144302]
[1757665251415,1e-08,237.29,237.28,30.9144302]
[1757665252134,0.1,237.33,237.29,26.0]
[1757665252336,0.1,237.33,237.32,30.21371987]
[1757665252739,0.1,237.33,237.32,30.91371987]
[1757665253124,0.1,237.33,237.32,4.91371987]
[1757665253737,0.1,237.33,237.32,30.91371987]
[1757665253943,0.1,237.33,237.32,4.91371987]
[1757665254328,0.1,237.33,237.31,1.68531041]
[1757665254521,0.72,237.32,237.25,43.07726265]
[1757665254834,0.72,237.32,237.26,10.53726265]
[1757665255428,0.72,237.32,237.26,36.53726265]
[1757665255845,0.1,237.33,237.26,26.0]
[1757665256030,0.66,237.31,237.26,26.0]
[1757665256237,0.66,237.3,237.25,8.42813464]
[1757665256436,0.66,237.29,237.23,4.21531846]
[1757665257538,0.66,237.29,237.25,26.0]
[1757665257744,0.66,237.28,237.25,26.0]
[1757665257934,0.66,237.3,237.25,26.0]
[1757665258134,0.66,237.29,237.22,4.31363082]
[1757665258344,0.66,237.28,237.18,0.67]
[1757665258548,0.66,237.28,237.18,26.67]
[1757665258848,0.66,237.27,237.18,0.67]
[1757665259022,0.66,237.27,237.18,26.67]
[1757665259227,0.66,237.27,237.2,26.0]
[1757665259838,0.66,237.27,237.21,0.67]
[1757665260048,0.66,237.29,237.21,0.67]
[1757665260551,0.66,237.29,237.22,26.0]
[1757665261142,0.66,237.29,237.21,0.67]
[1757665261743,0.66,237.29,237.22,26.0]
[1757665262435,0.66,237.28,237.21,4.21564863]
[1757665262639,0.66,237.27,237.21,4.21564863]
[1757665263163,0.66,237.26,237.2,26.0]
[1757665263363,0.66,237.25,237.2,30.21584698]
[1757665263560,0.66,237.24,237.2,30.21584698]
[1757665263762,4.21460783,237.27,237.18,4.88604331]
[1757665264066,0.66,237.23,237.17,26.0]
[1757665264243,0.66,237.23,237.16,4.21656265]
[1757665264565,3.48531911,237.28,237.17,26.67]
[1757665264743,4.14531911,237.27,237.17,26.79]
[1757665264946,0.66,237.26,237.18,0.67]
[1757665265340,0.66,237.26,237.17,26.12]
[1757665265341,3.48531911,237.25,237.17,26.12]
[1757665265554,0.66,237.26,237.18,0.67]
[1757665265764,0.66,237.27,237.18,0.67]
[1757665267265,4.87473483,237.27,237.19,4.21602934]
[1757665267473,0.66,237.26,237.2,26.0]
[1757665268747,0.66,237.3,237.22,26.0]
[1757665269038,0.66,237.3,237.22,26.67]
[1757665269664,0.66,237.3,237.23,4.21531846]
[1757665269867,4.87407758,237.3,237.23,4.21531846]
[1757665270243,0.66,237.29,237.23,4.21531846]
[1757665270440,0.66,237.28,237.23,4.21531846]
[1757665270642,0.66,237.27,237.22,26.0]
[1757665270844,0.66,237.29,237.23,0.67]
[1757665271043,4.14531911,237.29,237.22,4.21549368]
[1757665271249,0.66,237.28,237.22,4.21549368]
[1757665272174,0.66,237.28,237.22,4.88549368]
[1757665274255,4.14531911,237.28,237.21,26.0]
[1757665275064,4.14531911,237.27,237.2,26.0]
[1757665275362,0.66,237.26,237.2,26.0]
[1757665275974,4.87487442,237.26,237.2,30.2157141]
[1757665276273,0.66,237.25,237.2,30.2157141]
[1757665276482,0.66,237.25,237.2,26.67]
[1757665276651,0.66,237.24,237.17,0.12]
[1757665277870,4.14531911,237.24,237.17,0.12]
[1757665278252,4.21531846,237.23,237.17,0.12]
[1757665278744,0.66,237.22,237.17,0.12]
[1757665278943,0.66,237.21,237.17,0.12]
[1757665279354,4.87574315,237.21,237.17,0.12]